[Event "Late-Titled-Tuesday-Blitz-September-12-2023"]
[Site "Chess.com"]
[Date "2023.09.12"]
[Round "6"]
[White "h4parah5"]
[Black "Lennis93"]
[Result "1-0"]
[WhiteElo "2952"]
[BlackElo "2717"]
[TimeControl "180+1"]
[EndTime "15:05:29 PDT"]
[Termination "h4parah5 won by checkmate"]

1. Nf3 {[%clk 0:03:00.9]} 1... d5 {[%clk 0:02:59.5]} 2. b4 {[%clk 0:03:01.1]}
2... Nf6 {[%clk 0:02:58.8]} 3. Bb2 {[%clk 0:03:00.9]} 3... g6 {[%clk 0:02:59.4]}
4. c4 {[%clk 0:03:00.6]} 4... Bg7 {[%clk 0:02:59.5]} 5. cxd5 {[%clk 0:03:01]}
5... Qxd5 {[%clk 0:02:58.7]} 6. Nc3 {[%clk 0:02:59.4]} 6... Qd8 {[%clk
0:02:53.4]} 7. e3 {[%clk 0:02:48.5]} 7... O-O {[%clk 0:02:53.3]} 8. Be2 {[%clk
0:02:48.3]} 8... a5 {[%clk 0:02:52.8]} 9. b5 {[%clk 0:02:48.1]} 9... c5 {[%clk
0:02:51.1]} 10. O-O {[%clk 0:02:43.5]} 10... b6 {[%clk 0:02:51]} 11. d4 {[%clk
0:02:37]} 11... Nbd7 {[%clk 0:02:40.4]} 12. Ne5 {[%clk 0:02:22.8]} 12... Nxe5
{[%clk 0:02:33.8]} 13. dxe5 {[%clk 0:02:22.4]} 13... Nd7 {[%clk 0:02:34.3]} 14.
f4 {[%clk 0:02:21]} 14... Bb7 {[%clk 0:02:27.1]} 15. Bf3 {[%clk 0:02:15.4]}
15... Qc7 {[%clk 0:02:24.7]} 16. Nd5 {[%clk 0:02:11.6]} 16... Bxd5 {[%clk
0:02:24.1]} 17. Bxd5 {[%clk 0:02:12.5]} 17... Rad8 {[%clk 0:02:20.8]} 18. Qf3
{[%clk 0:02:12.2]} 18... e6 {[%clk 0:02:16.9]} 19. Bc4 {[%clk 0:02:11.9]} 19...
Rfe8 {[%clk 0:01:37.8]} 20. Rad1 {[%clk 0:01:57.9]} 20... Nf8 {[%clk 0:01:37.8]}
21. Bc3 {[%clk 0:01:20.8]} 21... Rxd1 {[%clk 0:01:34.2]} 22. Rxd1 {[%clk
0:01:21.7]} 22... Rd8 {[%clk 0:01:34.4]} 23. Rf1 {[%clk 0:01:22]} 23... a4
{[%clk 0:01:07.8]} 24. a3 {[%clk 0:01:15]} 24... g5 {[%clk 0:00:56.8]} 25. Qc6
{[%clk 0:01:03.6]} 25... Qb8 {[%clk 0:00:55.2]} 26. g3 {[%clk 0:01:00.1]} 26...
Ng6 {[%clk 0:00:54.1]} 27. Qf3 {[%clk 0:00:51.7]} 27... Qc7 {[%clk 0:00:16.1]}
28. Rd1 {[%clk 0:00:49.8]} 28... Ne7 {[%clk 0:00:14.1]} 29. Kf2 {[%clk
0:00:47.5]} 29... h6 {[%clk 0:00:13.1]} 30. Ke1 {[%clk 0:00:39.7]} 30... Kf8
{[%clk 0:00:13.4]} 31. Kf2 {[%clk 0:00:30.9]} 31... Ke8 {[%clk 0:00:12.8]} 32.
Rxd8+ {[%clk 0:00:25.6]} 32... Qxd8 {[%clk 0:00:12.6]} 33. Qb7 {[%clk
0:00:24.5]} 33... Nd5 {[%clk 0:00:12.7]} 34. Be1 {[%clk 0:00:18.1]} 34... Bf8
{[%clk 0:00:06.6]} 35. f5 {[%clk 0:00:16.3]} 35... Be7 {[%clk 0:00:06.4]} 36. f6
{[%clk 0:00:16.2]} 36... Bf8 {[%clk 0:00:06.8]} 37. g4 {[%clk 0:00:16.2]} 37...
Qd7 {[%clk 0:00:07.1]} 38. Qa8+ {[%clk 0:00:15.7]} 38... Qd8 {[%clk 0:00:07.5]}
39. Qxa4 {[%clk 0:00:15.6]} 39... Qb8 {[%clk 0:00:07]} 40. Qa6 {[%clk
0:00:13.1]} 40... Kd7 {[%clk 0:00:06.7]} 41. e4 {[%clk 0:00:11.9]} 41... Nc7
{[%clk 0:00:06.5]} 42. Qa4 {[%clk 0:00:11.1]} 42... Qa8 {[%clk 0:00:06.7]} 43.
Qxa8 {[%clk 0:00:10.1]} 43... Nxa8 {[%clk 0:00:07.6]} 44. a4 {[%clk 0:00:10.8]}
44... Kc7 {[%clk 0:00:06.3]} 45. Kf3 {[%clk 0:00:10.5]} 45... Kb7 {[%clk
0:00:05.9]} 46. h4 {[%clk 0:00:10.8]} 46... gxh4 {[%clk 0:00:03.9]} 47. Bxh4
{[%clk 0:00:10.2]} 47... Kc7 {[%clk 0:00:03.9]} 48. Be1 {[%clk 0:00:10.6]} 48...
Kd7 {[%clk 0:00:04.2]} 49. Kg3 {[%clk 0:00:10.9]} 49... Kc7 {[%clk 0:00:04.6]}
50. Kh4 {[%clk 0:00:11.5]} 50... Kd7 {[%clk 0:00:05]} 51. Kh5 {[%clk 0:00:12.2]}
51... Nc7 {[%clk 0:00:04.4]} 52. Bd2 {[%clk 0:00:12.9]} 52... Ne8 {[%clk
0:00:04.2]} 53. Bxh6 {[%clk 0:00:13.3]} 53... Bd6 {[%clk 0:00:03.3]} 54. exd6
{[%clk 0:00:12.9]} 54... Nxf6+ {[%clk 0:00:03.8]} 55. Kh4 {[%clk 0:00:12.2]}
55... Nxe4 {[%clk 0:00:04.7]} 56. Bf4 {[%clk 0:00:06.6]} 56... f6 {[%clk
0:00:05.1]} 57. Bd3 {[%clk 0:00:06]} 57... e5 {[%clk 0:00:05.5]} 58. Bxe4 {[%clk
0:00:06]} 58... exf4 {[%clk 0:00:06]} 59. g5 {[%clk 0:00:06]} 59... Kxd6 {[%clk
0:00:06.9]} 60. g6 {[%clk 0:00:06.1]} 60... Ke7 {[%clk 0:00:07]} 61. Kg4 {[%clk
0:00:06.7]} 61... Kf8 {[%clk 0:00:07]} 62. Kxf4 {[%clk 0:00:07.1]} 62... Kg7
{[%clk 0:00:07.7]} 63. Bf5 {[%clk 0:00:07.7]} 63... c4 {[%clk 0:00:08.6]} 64.
Ke3 {[%clk 0:00:08.3]} 64... c3 {[%clk 0:00:09.5]} 65. Kd3 {[%clk 0:00:08.6]}
65... Kh6 {[%clk 0:00:10.3]} 66. Kxc3 {[%clk 0:00:08.9]} 66... Kg5 {[%clk
0:00:11.2]} 67. g7 {[%clk 0:00:09]} 67... Kxf5 {[%clk 0:00:11.5]} 68. g8=Q
{[%clk 0:00:09.9]} 68... Ke5 {[%clk 0:00:12.4]} 69. Qb8+ {[%clk 0:00:09.8]}
69... Kf5 {[%clk 0:00:12.7]} 70. Qxb6 {[%clk 0:00:10.7]} 70... Ke4 {[%clk
0:00:13.6]} 71. Qc6+ {[%clk 0:00:11.3]} 71... Ke5 {[%clk 0:00:13.9]} 72. b6
{[%clk 0:00:12.2]} 72... Kf5 {[%clk 0:00:14.8]} 73. b7 {[%clk 0:00:12.6]} 73...
Kg6 {[%clk 0:00:15]} 74. b8=Q {[%clk 0:00:12.8]} 74... Kf7 {[%clk 0:00:15.9]}
75. Qbe8+ {[%clk 0:00:12.3]} 75... Kg7 {[%clk 0:00:16.8]} 76. Qcd7+ {[%clk
0:00:12.7]} 76... Kh6 {[%clk 0:00:16.9]} 77. Qh8+ {[%clk 0:00:12.6]} 77... Kg5
{[%clk 0:00:17.4]} 78. Qhg7+ {[%clk 0:00:12.6]} 78... Kf4 {[%clk 0:00:18.3]} 79.
Qdg4+ {[%clk 0:00:12.1]} 79... Ke5 {[%clk 0:00:18.4]} 80. Qd4+ {[%clk
0:00:12.5]} 80... Ke6 {[%clk 0:00:18.1]} 81. Qgxf6# {[%clk 0:00:13.4]} 1-0

[Event "Late-Titled-Tuesday-Blitz-September-12-2023"]
[Site "Chess.com"]
[Date "2023.09.12"]
[Round "6"]
[White "laskakid"]
[Black "GiorgianBarbosa"]
[Result "1/2-1/2"]
[WhiteElo "2248"]
[BlackElo "2423"]
[TimeControl "180+1"]
[EndTime "15:05:44 PDT"]
[Termination "Game drawn - insufficient material"]

1. d4 {[%clk 0:03:00.9]} 1... Nf6 {[%clk 0:02:59.1]} 2. c4 {[%clk 0:03:01]} 2...
e6 {[%clk 0:02:58.7]} 3. Nc3 {[%clk 0:03:01.2]} 3... d5 {[%clk 0:02:59.6]} 4.
Bg5 {[%clk 0:03:00.1]} 4... Be7 {[%clk 0:02:59.6]} 5. e3 {[%clk 0:03:00.4]} 5...
O-O {[%clk 0:02:59.7]} 6. Nf3 {[%clk 0:02:59.4]} 6... a6 {[%clk 0:03:00.1]} 7.
Rc1 {[%clk 0:02:57.5]} 7... Nbd7 {[%clk 0:03:00.1]} 8. Bd3 {[%clk 0:02:53.9]}
8... dxc4 {[%clk 0:02:59.3]} 9. Bxc4 {[%clk 0:02:54.2]} 9... b5 {[%clk
0:03:00.2]} 10. Bd3 {[%clk 0:02:52.7]} 10... Bb7 {[%clk 0:03:01.1]} 11. O-O
{[%clk 0:02:50.9]} 11... c5 {[%clk 0:03:01.4]} 12. a3 {[%clk 0:02:26]} 12... h6
{[%clk 0:03:00.5]} 13. Bh4 {[%clk 0:02:23.7]} 13... Rc8 {[%clk 0:03:01.1]} 14.
e4 {[%clk 0:02:12.3]} 14... cxd4 {[%clk 0:02:59.1]} 15. Nxd4 {[%clk 0:02:07.1]}
15... Ne5 {[%clk 0:02:55.1]} 16. Bb1 {[%clk 0:02:04]} 16... Nfg4 {[%clk
0:02:28.9]} 17. Bxe7 {[%clk 0:01:41.3]} 17... Qxe7 {[%clk 0:02:29.8]} 18. Qe2
{[%clk 0:01:32.7]} 18... Rfd8 {[%clk 0:02:13.2]} 19. Rcd1 {[%clk 0:01:26.6]}
19... Qh4 {[%clk 0:02:12.4]} 20. h3 {[%clk 0:01:23]} 20... Nf6 {[%clk 0:02:09]}
21. Rfe1 {[%clk 0:01:06.2]} 21... Nc4 {[%clk 0:01:46.2]} 22. Nf3 {[%clk
0:01:00.5]} 22... Qh5 {[%clk 0:01:33.7]} 23. a4 {[%clk 0:00:55.9]} 23... b4
{[%clk 0:01:27.8]} 24. Rxd8+ {[%clk 0:00:54.1]} 24... Rxd8 {[%clk 0:01:25.7]}
25. Qxc4 {[%clk 0:00:54.3]} 25... bxc3 {[%clk 0:01:26]} 26. Qxc3 {[%clk
0:00:51.7]} 26... Rc8 {[%clk 0:01:21.5]} 27. Qb4 {[%clk 0:00:49.6]} 27... Ba8
{[%clk 0:01:19.4]} 28. Qe7 {[%clk 0:00:43.1]} 28... Re8 {[%clk 0:01:17.2]} 29.
Qa7 {[%clk 0:00:42.6]} 29... g5 {[%clk 0:01:14.4]} 30. Qxa6 {[%clk 0:00:41]}
30... g4 {[%clk 0:01:13.4]} 31. hxg4 {[%clk 0:00:41]} 31... Nxg4 {[%clk
0:01:14.3]} 32. Qb5 {[%clk 0:00:39.9]} 32... Qxb5 {[%clk 0:01:14.5]} 33. axb5
{[%clk 0:00:40.3]} 33... Rb8 {[%clk 0:01:15.4]} 34. Bd3 {[%clk 0:00:39.8]} 34...
Nf6 {[%clk 0:01:11.3]} 35. Nd2 {[%clk 0:00:38.4]} 35... Nd7 {[%clk 0:01:11.3]}
36. Ra1 {[%clk 0:00:38.1]} 36... Nc5 {[%clk 0:01:10.2]} 37. Bc4 {[%clk
0:00:34.1]} 37... Bxe4 {[%clk 0:01:09.2]} 38. b4 {[%clk 0:00:32]} 38... Rd8
{[%clk 0:00:46.8]} 39. bxc5 {[%clk 0:00:29]} 39... Rxd2 {[%clk 0:00:46.2]} 40.
c6 {[%clk 0:00:21.3]} 40... Rc2 {[%clk 0:00:45.7]} 41. Ra4 {[%clk 0:00:19.5]}
41... Bd5 {[%clk 0:00:22.5]} 42. Bxd5 {[%clk 0:00:17]} 42... exd5 {[%clk
0:00:22.4]} 43. Rd4 {[%clk 0:00:16.8]} 43... Rc5 {[%clk 0:00:21.6]} 44. c7
{[%clk 0:00:14.9]} 44... Rxc7 {[%clk 0:00:19.7]} 45. Rxd5 {[%clk 0:00:15.2]}
45... Rc1+ {[%clk 0:00:20.2]} 46. Kh2 {[%clk 0:00:14.6]} 46... Rc2 {[%clk
0:00:21.1]} 47. Kg3 {[%clk 0:00:14.6]} 47... Rb2 {[%clk 0:00:21.1]} 48. Rc5
{[%clk 0:00:14.1]} 48... Kg7 {[%clk 0:00:22]} 49. f3 {[%clk 0:00:14.2]} 49...
Rb4 {[%clk 0:00:22]} 50. Kh3 {[%clk 0:00:14]} 50... Rb2 {[%clk 0:00:22.9]} 51.
g4 {[%clk 0:00:14.3]} 51... Rb3 {[%clk 0:00:22.6]} 52. Kg3 {[%clk 0:00:14.8]}
52... Rb4 {[%clk 0:00:22.6]} 53. f4 {[%clk 0:00:14.9]} 53... Rb3+ {[%clk
0:00:21.6]} 54. Kh4 {[%clk 0:00:15.2]} 54... Rb2 {[%clk 0:00:21.8]} 55. f5
{[%clk 0:00:14.8]} 55... Rb4 {[%clk 0:00:21.2]} 56. Kg3 {[%clk 0:00:14.7]} 56...
Kf6 {[%clk 0:00:18]} 57. Rc6+ {[%clk 0:00:14.3]} 57... Kg5 {[%clk 0:00:18.1]}
58. b6 {[%clk 0:00:11.3]} 58... Rb3+ {[%clk 0:00:18.2]} 59. Kf2 {[%clk 0:00:11]}
59... Kxg4 {[%clk 0:00:17.9]} 60. Rxh6 {[%clk 0:00:10.6]} 60... Kxf5 {[%clk
0:00:14.4]} 61. Rc6 {[%clk 0:00:09.8]} 61... Kg5 {[%clk 0:00:11.4]} 62. Rc7
{[%clk 0:00:08.3]} 62... f5 {[%clk 0:00:10.2]} 63. b7 {[%clk 0:00:08.4]} 63...
Kf4 {[%clk 0:00:11.1]} 64. Ke2 {[%clk 0:00:07.6]} 64... Rb6 {[%clk 0:00:11.7]}
65. Kd2 {[%clk 0:00:07.5]} 65... Kf3 {[%clk 0:00:09.5]} 66. Re7 {[%clk 0:00:06]}
66... f4 {[%clk 0:00:09.3]} 67. Kc3 {[%clk 0:00:05.8]} 67... Kf2 {[%clk
0:00:08.2]} 68. Kc4 {[%clk 0:00:06.1]} 68... f3 {[%clk 0:00:08.3]} 69. Kc5
{[%clk 0:00:06.4]} 69... Rb1 {[%clk 0:00:08.9]} 70. Kc6 {[%clk 0:00:05.2]} 70...
Kf1 {[%clk 0:00:08.6]} 71. Re5 {[%clk 0:00:04.8]} 71... Rxb7 {[%clk 0:00:02.4]}
72. Kxb7 {[%clk 0:00:04.4]} 72... f2 {[%clk 0:00:03.3]} 73. Rf5 {[%clk
0:00:04.7]} 73... Kg2 {[%clk 0:00:04.2]} 74. Rxf2+ {[%clk 0:00:04.8]} 74... Kxf2
{[%clk 0:00:05.1]} 1/2-1/2

[Event "Late-Titled-Tuesday-Blitz-September-12-2023"]
[Site "Chess.com"]
[Date "2023.09.12"]
[Round "6"]
[White "S-Fazulyanov"]
[Black "Macron20hTF1"]
[Result "1/2-1/2"]
[WhiteElo "2479"]
[BlackElo "2624"]
[TimeControl "180+1"]
[EndTime "15:06:15 PDT"]
[Termination "Game drawn by repetition"]

1. e4 {[%clk 0:03:00.7]} 1... c6 {[%clk 0:03:00.1]} 2. d4 {[%clk 0:03:01.1]}
2... d5 {[%clk 0:03:01]} 3. exd5 {[%clk 0:03:01.7]} 3... cxd5 {[%clk 0:03:01.9]}
4. Bd3 {[%clk 0:03:02.6]} 4... Nf6 {[%clk 0:03:01.3]} 5. c3 {[%clk 0:03:02.5]}
5... Bg4 {[%clk 0:03:01.6]} 6. Qb3 {[%clk 0:03:02]} 6... Qc7 {[%clk 0:03:01.5]}
7. Nd2 {[%clk 0:02:54.1]} 7... e6 {[%clk 0:02:53.7]} 8. h3 {[%clk 0:02:53.6]}
8... Bh5 {[%clk 0:02:51.4]} 9. Ngf3 {[%clk 0:02:53.4]} 9... Bd6 {[%clk
0:02:47.1]} 10. O-O {[%clk 0:02:49.3]} 10... O-O {[%clk 0:02:43.3]} 11. Ne5
{[%clk 0:02:49.1]} 11... Bxe5 {[%clk 0:02:36]} 12. dxe5 {[%clk 0:02:48.6]} 12...
Qxe5 {[%clk 0:02:36.9]} 13. Qxb7 {[%clk 0:02:45]} 13... Nbd7 {[%clk 0:02:35.4]}
14. Nb3 {[%clk 0:02:32.6]} 14... a5 {[%clk 0:02:29.6]} 15. Be3 {[%clk
0:02:23.3]} 15... a4 {[%clk 0:02:22.3]} 16. Nc5 {[%clk 0:02:01.5]} 16... Nxc5
{[%clk 0:02:15.9]} 17. Bxc5 {[%clk 0:02:02.4]} 17... Rfb8 {[%clk 0:02:15.1]} 18.
Qc6 {[%clk 0:01:51.8]} 18... Rc8 {[%clk 0:02:15.3]} 19. Bd4 {[%clk 0:01:32]}
19... Qb8 {[%clk 0:02:06.8]} 20. Qb5 {[%clk 0:01:28.1]} 20... Qxb5 {[%clk
0:02:00.1]} 21. Bxb5 {[%clk 0:01:29]} 21... Rcb8 {[%clk 0:01:58.7]} 22. c4
{[%clk 0:01:29.5]} 22... Be2 {[%clk 0:01:53.3]} 23. Rfc1 {[%clk 0:01:26.6]}
23... Ne4 {[%clk 0:01:49.5]} 24. Bc6 {[%clk 0:01:24.6]} 24... Bxc4 {[%clk
0:01:37.5]} 25. Bxa8 {[%clk 0:01:21.7]} 25... Rxa8 {[%clk 0:01:38.4]} 26. b3
{[%clk 0:01:22.6]} 26... Bb5 {[%clk 0:01:32.2]} 27. bxa4 {[%clk 0:01:17.4]}
27... Bxa4 {[%clk 0:01:30.2]} 28. Rc7 {[%clk 0:01:16.9]} 28... h5 {[%clk
0:01:19.9]} 29. Rac1 {[%clk 0:01:16.2]} 29... Bb5 {[%clk 0:01:16.2]} 30. Rc8+
{[%clk 0:01:16.1]} 30... Rxc8 {[%clk 0:01:14.9]} 31. Rxc8+ {[%clk 0:01:16.8]}
31... Kh7 {[%clk 0:01:15.8]} 32. Rb8 {[%clk 0:01:15.3]} 32... Bc4 {[%clk
0:01:14.6]} 33. a3 {[%clk 0:01:15]} 33... Nd6 {[%clk 0:01:14.6]} 34. a4 {[%clk
0:01:12.2]} 34... f6 {[%clk 0:01:13.4]} 35. a5 {[%clk 0:01:03.9]} 35... e5
{[%clk 0:01:09.4]} 36. Bc5 {[%clk 0:00:59.3]} 36... Ne4 {[%clk 0:01:05.4]} 37.
Bb4 {[%clk 0:00:42.1]} 37... d4 {[%clk 0:01:04.2]} 38. f3 {[%clk 0:00:38.5]}
38... Ng3 {[%clk 0:00:56.1]} 39. Rb6 {[%clk 0:00:37.7]} 39... f5 {[%clk
0:00:30.5]} 40. Bd6 {[%clk 0:00:21.5]} 40... Ne2+ {[%clk 0:00:29.5]} 41. Kf2
{[%clk 0:00:21.4]} 41... e4 {[%clk 0:00:29.4]} 42. a6 {[%clk 0:00:15.5]} 42...
e3+ {[%clk 0:00:29.1]} 43. Ke1 {[%clk 0:00:14.7]} 43... d3 {[%clk 0:00:29.1]}
44. Bb4 {[%clk 0:00:14.9]} 44... Nf4 {[%clk 0:00:25.7]} 45. a7 {[%clk
0:00:13.7]} 45... Nxg2+ {[%clk 0:00:22.4]} 46. Kd1 {[%clk 0:00:14.5]} 46... Bb3+
{[%clk 0:00:22.6]} 47. Kc1 {[%clk 0:00:15.1]} 47... Bd5 {[%clk 0:00:18.8]} 48.
Rb8 {[%clk 0:00:15.3]} 48... Bxf3 {[%clk 0:00:18.2]} 49. a8=Q {[%clk 0:00:14.4]}
49... d2+ {[%clk 0:00:18.6]} 50. Bxd2 {[%clk 0:00:14.4]} 50... exd2+ {[%clk
0:00:19.5]} 51. Kxd2 {[%clk 0:00:14.3]} 51... Bxa8 {[%clk 0:00:20.4]} 52. Rxa8
{[%clk 0:00:14.6]} 52... Nf4 {[%clk 0:00:21.3]} 53. h4 {[%clk 0:00:14.4]} 53...
Ng2 {[%clk 0:00:21.4]} 54. Ra4 {[%clk 0:00:14.5]} 54... f4 {[%clk 0:00:21.1]}
55. Ke2 {[%clk 0:00:14]} 55... Kg6 {[%clk 0:00:21]} 56. Kf3 {[%clk 0:00:13.9]}
56... Nxh4+ {[%clk 0:00:21.5]} 57. Kxf4 {[%clk 0:00:14.5]} 57... Kh6 {[%clk
0:00:21.4]} 58. Ra6+ {[%clk 0:00:12.9]} 58... g6 {[%clk 0:00:21.9]} 59. Rb6
{[%clk 0:00:12.9]} 59... Nf5 {[%clk 0:00:22.3]} 60. Rf6 {[%clk 0:00:12.3]} 60...
Nd4 {[%clk 0:00:18.4]} 61. Rd6 {[%clk 0:00:11.9]} 61... Ne2+ {[%clk 0:00:17.7]}
62. Kf3 {[%clk 0:00:11.6]} 62... Nc3 {[%clk 0:00:18.2]} 63. Kf4 {[%clk
0:00:11.5]} 63... Nb5 {[%clk 0:00:18.5]} 64. Rb6 {[%clk 0:00:12]} 64... Nd4
{[%clk 0:00:18.9]} 65. Ra6 {[%clk 0:00:12]} 65... Kg7 {[%clk 0:00:17.7]} 66. Kg5
{[%clk 0:00:11.1]} 66... Nf3+ {[%clk 0:00:17.6]} 67. Kf4 {[%clk 0:00:11.6]}
67... Nd2 {[%clk 0:00:16.7]} 68. Kg5 {[%clk 0:00:10.4]} 68... Ne4+ {[%clk
0:00:17.2]} 69. Kf4 {[%clk 0:00:10.6]} 69... Nc5 {[%clk 0:00:13.7]} 70. Rc6
{[%clk 0:00:10.2]} 70... Nd3+ {[%clk 0:00:13.3]} 71. Kg5 {[%clk 0:00:10.5]}
71... Ne5 {[%clk 0:00:13.9]} 72. Rc7+ {[%clk 0:00:07.2]} 72... Kg8 {[%clk
0:00:10.6]} 73. Kf6 {[%clk 0:00:06.1]} 73... Ng4+ {[%clk 0:00:09.9]} 74. Kxg6
{[%clk 0:00:07]} 74... Ne5+ {[%clk 0:00:09.6]} 75. Kxh5 {[%clk 0:00:06.7]} 75...
Kf8 {[%clk 0:00:10.1]} 76. Kg5 {[%clk 0:00:07.6]} 76... Ke8 {[%clk 0:00:09.3]}
77. Kf6 {[%clk 0:00:07.5]} 77... Nd7+ {[%clk 0:00:08.9]} 78. Ke6 {[%clk
0:00:07.9]} 78... Nf8+ {[%clk 0:00:09.2]} 79. Kd6 {[%clk 0:00:08.6]} 79... Ng6
{[%clk 0:00:08.5]} 80. Rg7 {[%clk 0:00:08.4]} 80... Nf8 {[%clk 0:00:08]} 81. Ra7
{[%clk 0:00:09]} 81... Ng6 {[%clk 0:00:08]} 82. Ke6 {[%clk 0:00:09]} 82... Nf8+
{[%clk 0:00:08.1]} 83. Kf6 {[%clk 0:00:09.4]} 83... Nd7+ {[%clk 0:00:08.3]} 84.
Ke6 {[%clk 0:00:08.4]} 84... Nf8+ {[%clk 0:00:08.7]} 85. Kd6 {[%clk 0:00:08.8]}
85... Ng6 {[%clk 0:00:09.2]} 86. Ke6 {[%clk 0:00:09.3]} 86... Nf8+ {[%clk
0:00:09.6]} 1/2-1/2

[Event "Late-Titled-Tuesday-Blitz-September-12-2023"]
[Site "Chess.com"]
[Date "2023.09.12"]
[Round "7"]
[White "PabloZarnicki"]
[Black "atigerman"]
[Result "1-0"]
[WhiteElo "2515"]
[BlackElo "2665"]
[TimeControl "180+1"]
[EndTime "15:09:28 PDT"]
[Termination "PabloZarnicki won by resignation"]

1. e4 {[%clk 0:03:00.9]} 1... Nf6 {[%clk 0:03:00.9]} 2. e5 {[%clk 0:02:59.4]}
2... Nd5 {[%clk 0:02:59.2]} 3. Nc3 {[%clk 0:02:59.1]} 3... Nxc3 {[%clk
0:02:58.1]} 4. bxc3 {[%clk 0:03:00]} 4... d6 {[%clk 0:02:58.1]} 5. f4 {[%clk
0:02:59.6]} 5... c5 {[%clk 0:02:55.6]} 6. d4 {[%clk 0:02:59.8]} 6... cxd4 {[%clk
0:02:55.7]} 7. cxd4 {[%clk 0:02:59.9]} 7... dxe5 {[%clk 0:02:56.6]} 8. fxe5
{[%clk 0:02:59.7]} 8... Bf5 {[%clk 0:02:57.2]} 9. Rb1 {[%clk 0:02:56.4]} 9...
Be4 {[%clk 0:02:54.2]} 10. Nf3 {[%clk 0:02:49.2]} 10... Nc6 {[%clk 0:02:53.7]}
11. Bd3 {[%clk 0:02:46.7]} 11... Qd5 {[%clk 0:02:27.2]} 12. c4 {[%clk
0:02:29.2]} 12... Bxf3 {[%clk 0:02:03.5]} 13. cxd5 {[%clk 0:02:27.3]} 13... Bxd1
{[%clk 0:02:04.4]} 14. dxc6 {[%clk 0:02:22]} 14... Ba4 {[%clk 0:02:05.3]} 15.
cxb7 {[%clk 0:02:21.1]} 15... Rb8 {[%clk 0:02:04.7]} 16. e6 {[%clk 0:02:06.9]}
1-0

[Event "Late-Titled-Tuesday-Blitz-September-12-2023"]
[Site "Chess.com"]
[Date "2023.09.12"]
[Round "7"]
[White "Parhamov"]
[Black "h4parah5"]
[Result "0-1"]
[WhiteElo "3094"]
[BlackElo "2963"]
[TimeControl "180+1"]
[EndTime "15:10:09 PDT"]
[Termination "h4parah5 won by resignation"]

1. d4 {[%clk 0:02:47.2]} 1... Nf6 {[%clk 0:02:59.4]} 2. c4 {[%clk 0:02:47.2]}
2... e6 {[%clk 0:02:59.1]} 3. Nf3 {[%clk 0:02:46.4]} 3... d5 {[%clk 0:02:59.6]}
4. Nc3 {[%clk 0:02:46.3]} 4... dxc4 {[%clk 0:02:55.5]} 5. e3 {[%clk 0:02:46.7]}
5... a6 {[%clk 0:02:55.2]} 6. a4 {[%clk 0:02:46.2]} 6... c5 {[%clk 0:02:53.9]}
7. Bxc4 {[%clk 0:02:46.2]} 7... Nc6 {[%clk 0:02:54.5]} 8. O-O {[%clk 0:02:46.2]}
8... Be7 {[%clk 0:02:54.3]} 9. h3 {[%clk 0:02:43.5]} 9... O-O {[%clk 0:02:53.6]}
10. Re1 {[%clk 0:02:41.7]} 10... Qc7 {[%clk 0:02:51.9]} 11. dxc5 {[%clk
0:02:40.1]} 11... Bxc5 {[%clk 0:02:48.9]} 12. Qe2 {[%clk 0:02:40.5]} 12... Bd6
{[%clk 0:02:42.7]} 13. Bd2 {[%clk 0:02:37.6]} 13... Bd7 {[%clk 0:02:38.4]} 14.
Rac1 {[%clk 0:02:37.6]} 14... Rac8 {[%clk 0:02:37.6]} 15. Bd3 {[%clk 0:02:36.8]}
15... Qb8 {[%clk 0:02:36.6]} 16. Ne4 {[%clk 0:02:31.8]} 16... Nxe4 {[%clk
0:02:35.6]} 17. Bxe4 {[%clk 0:02:32.2]} 17... Ne7 {[%clk 0:02:28.4]} 18. a5
{[%clk 0:02:22.8]} 18... Bc6 {[%clk 0:02:27.7]} 19. Bxc6 {[%clk 0:02:20.2]}
19... Rxc6 {[%clk 0:02:26.8]} 20. e4 {[%clk 0:02:18.7]} 20... Rxc1 {[%clk
0:02:23.9]} 21. Rxc1 {[%clk 0:02:18.8]} 21... Rc8 {[%clk 0:02:24.6]} 22. Rd1
{[%clk 0:02:19.2]} 22... Nc6 {[%clk 0:02:24]} 23. Bc3 {[%clk 0:02:18.5]} 23...
Rd8 {[%clk 0:02:22.5]} 24. g4 {[%clk 0:02:12.7]} 24... Bc7 {[%clk 0:02:21.5]}
25. b4 {[%clk 0:02:12.8]} 25... Bd6 {[%clk 0:02:16.9]} 26. b5 {[%clk 0:02:12.6]}
26... axb5 {[%clk 0:02:16.5]} 27. Qxb5 {[%clk 0:02:13.5]} 27... Bh2+ {[%clk
0:02:14.7]} 28. Nxh2 {[%clk 0:02:13.4]} 28... Rxd1+ {[%clk 0:02:14.8]} 29. Kg2
{[%clk 0:02:14]} 29... Qc7 {[%clk 0:02:11.9]} 30. Nf3 {[%clk 0:02:09.7]} 30...
Rd8 {[%clk 0:02:10.2]} 31. Qg5 {[%clk 0:02:07.6]} 31... e5 {[%clk 0:02:03.8]}
32. Qf5 {[%clk 0:02:06.3]} 32... f6 {[%clk 0:01:58.5]} 33. g5 {[%clk 0:02:05.5]}
33... Qd7 {[%clk 0:01:57.6]} 34. gxf6 {[%clk 0:02:04.7]} 34... Qxf5 {[%clk
0:01:57.4]} 35. exf5 {[%clk 0:02:03.9]} 35... gxf6 {[%clk 0:01:57.7]} 36. Nd2
{[%clk 0:02:04.4]} 36... Rd5 {[%clk 0:01:54.1]} 0-1

[Event "Late-Titled-Tuesday-Blitz-September-12-2023"]
[Site "Chess.com"]
[Date "2023.09.12"]
[Round "7"]
[White "cukin84"]
[Black "Cambek64"]
[Result "0-1"]
[WhiteElo "2242"]
[BlackElo "2490"]
[TimeControl "180+1"]
[EndTime "15:10:25 PDT"]
[Termination "Cambek64 won by checkmate"]

1. e4 {[%clk 0:03:00.9]} 1... e6 {[%clk 0:02:58.9]} 2. d4 {[%clk 0:03:00.5]}
2... d5 {[%clk 0:02:59.5]} 3. Nc3 {[%clk 0:03:00]} 3... Nc6 {[%clk 0:02:58.8]}
4. exd5 {[%clk 0:02:58.6]} 4... exd5 {[%clk 0:02:58.1]} 5. Bb5 {[%clk
0:02:56.8]} 5... a6 {[%clk 0:02:58.5]} 6. Bxc6+ {[%clk 0:02:55.7]} 6... bxc6
{[%clk 0:02:59.3]} 7. Bf4 {[%clk 0:02:53.6]} 7... Bd6 {[%clk 0:02:56.8]} 8. Nge2
{[%clk 0:02:53.1]} 8... Ne7 {[%clk 0:02:55.6]} 9. O-O {[%clk 0:02:49.6]} 9...
O-O {[%clk 0:02:56.2]} 10. Qd3 {[%clk 0:02:49.2]} 10... a5 {[%clk 0:02:56.4]}
11. Bxd6 {[%clk 0:02:32.6]} 11... cxd6 {[%clk 0:02:54.8]} 12. Nf4 {[%clk
0:02:27]} 12... Ba6 {[%clk 0:02:54.6]} 13. Qg3 {[%clk 0:02:24.7]} 13... Bxf1
{[%clk 0:02:54.1]} 14. Rxf1 {[%clk 0:02:24.6]} 14... Ng6 {[%clk 0:02:53.3]} 15.
Nh5 {[%clk 0:02:22.5]} 15... Qh4 {[%clk 0:02:51.1]} 16. Qf3 {[%clk 0:02:16]}
16... Qxd4 {[%clk 0:02:49.9]} 17. h3 {[%clk 0:02:07.1]} 17... Rfe8 {[%clk
0:02:45.4]} 18. Rd1 {[%clk 0:02:05.1]} 18... Qe5 {[%clk 0:02:44.9]} 19. g3
{[%clk 0:01:55.3]} 19... Rab8 {[%clk 0:02:42.6]} 20. b3 {[%clk 0:01:53.3]} 20...
d4 {[%clk 0:02:36.8]} 21. Na4 {[%clk 0:01:38.2]} 21... c5 {[%clk 0:02:37.2]} 22.
Rd3 {[%clk 0:01:33.6]} 22... Qe2 {[%clk 0:02:30.2]} 23. Qf5 {[%clk 0:01:31]}
23... Re5 {[%clk 0:02:28.1]} 24. Qd7 {[%clk 0:01:22.4]} 24... Qxh5 {[%clk
0:02:22.8]} 25. Qxd6 {[%clk 0:01:21.2]} 25... Rf8 {[%clk 0:02:22.7]} 26. Kg2
{[%clk 0:01:16.8]} 26... Qg5 {[%clk 0:02:20.2]} 27. Kh2 {[%clk 0:01:09.8]} 27...
Qf5 {[%clk 0:02:18.4]} 28. Nb6 {[%clk 0:01:05.1]} 28... Qxf2+ {[%clk 0:02:17.5]}
29. Kh1 {[%clk 0:01:04.5]} 29... Re1# {[%clk 0:02:18]} 0-1